bitfinex-derivatives/quotes_SOLF0:USTF0_20260312
["timestamp","ask_amount","ask_price","bid_price","bid_amount"]
[1773308774884,3.70959598,86.361,86.308,10.427]
[1773308775986,3.70959598,86.361,86.268,78.46]
[1773308775987,3.70959598,86.361,86.282,3.66575345]
[1773308777187,3.70959598,86.361,86.321,10.425]
[1773308778076,3.70959598,86.385,86.306,3.66575345]
[1773308778788,3.70959598,86.374,86.306,3.66575345]
[1773308779282,3.70959598,86.374,86.288,34.72]
[1773308779582,3.70959598,86.369,86.291,3.66575345]
[1773308779786,3.70959598,86.369,86.315,3.66575345]
[1773308781587,6.25914248,86.4,86.318,10.425]
[1773308781588,3.70299675,86.367,86.318,10.425]
[1773308781782,3.70299675,86.367,86.297,3.66102015]
[1773308782087,3.70299675,86.352,86.297,3.66102015]
[1773308782477,3.70299675,86.352,86.241,11.62]
[1773308782478,3.70299675,86.352,86.279,3.66102015]
[1773308783089,3.70299675,86.35,86.279,3.66102015]
[1773308783987,3.70299675,86.339,86.279,3.66102015]
[1773308784186,3.70299675,86.339,86.265,43.76]
[1773308784386,3.70299675,86.379,86.271,3.66102015]
[1773308784782,3.70299675,86.337,86.271,3.66102015]
[1773308785583,3.70299675,86.334,86.281,10.43]
[1773308785777,3.70299675,86.353,86.271,3.66102015]
[1773308786177,6.25914248,86.38,86.294,10.428]
[1773308786178,3.70299675,86.349,86.294,10.428]
[1773308786891,3.70299675,86.346,86.294,10.428]
[1773308788086,14.12599675,86.343,86.286,10.429]
[1773308788584,3.70299675,86.342,86.293,10.428]
[1773308788986,10.423,86.34,86.293,10.428]
[1773308789188,3.70299675,86.339,86.271,3.66102015]
[1773308789490,3.70299675,86.326,86.25,3.66102015]
[1773308789784,3.70299675,86.326,86.267,10.432]
[1773308789990,3.70299675,86.326,86.251,3.66102015]
[1773308790590,3.70299675,86.326,86.28,10.43]
[1773308791393,3.70299675,86.326,86.271,10.431]
[1773308791686,3.70299675,86.326,86.25,3.66102015]
[1773308792088,3.70299675,86.325,86.269,10.431]
[1773308792893,3.70299675,86.325,86.277,10.43]
[1773308793093,3.70299675,86.325,86.25,3.66102015]
[1773308794095,3.70299675,86.325,86.266,3.66102015]
[1773308795195,3.70299675,86.325,86.276,10.431]
[1773308795594,3.70299675,86.325,86.284,10.43]
[1773308796095,3.70299675,86.325,86.266,3.66102015]
[1773308796994,3.70299675,86.325,86.28,10.43]
[1773308797798,14.12799675,86.325,86.28,10.43]
[1773308798093,3.70299675,86.325,86.243,3.66102015]
[1773308798293,3.70299675,86.324,86.243,3.66102015]
[1773308798597,3.70299675,86.324,86.279,10.43]
[1773308798791,14.12799675,86.323,86.266,3.66102015]
[1773308798991,3.70299675,86.322,86.266,3.66102015]
[1773308799188,3.70299675,86.322,86.27,10.431]
[1773308799702,3.70299675,86.322,86.266,3.66102015]
[1773308800086,3.70299675,86.322,86.266,10.432]
[1773308800293,8.76220138,86.378,86.266,10.432]
[1773308800294,3.70299675,86.311,86.266,10.432]
[1773308801296,3.70299675,86.31,86.258,10.433]
[1773308801800,3.70299675,86.299,86.25,10.434]
[1773308802000,3.70299675,86.339,86.239,3.66102015]
[1773308802989,3.72648963,86.321,86.254,3.6771822]
[1773308803597,3.72648963,86.316,86.271,10.431]
[1773308803999,3.72648963,86.316,86.254,3.6771822]
[1773308804196,3.72648963,86.314,86.27,10.431]
[1773308804396,3.72648963,86.314,86.254,3.6771822]
[1773308804995,3.72648963,86.312,86.254,3.6771822]
[1773308805798,3.72648963,86.31,86.259,10.433]
[1773308806402,3.72648963,86.298,86.251,10.434]
[1773308806599,3.72648963,86.298,86.238,286.02702371]
[1773308806899,3.72648963,86.284,86.238,286.02702371]
[1773308807204,3.72648963,86.284,86.236,10.435]
[1773308807495,3.72648963,86.299,86.225,3.72040996]
[1773308807702,3.72648963,86.299,86.231,3.72040996]
[1773308809405,3.72648963,86.297,86.231,3.72040996]
[1773308811901,3.79926198,86.29,86.248,10.434]
[1773308812101,3.79926198,86.29,86.231,3.72040996]
[1773308815005,3.79926198,86.29,86.254,10.433]
[1773308815916,3.79926198,86.29,86.247,10.434]
[1773308816207,3.79926198,86.287,86.212,3.71241987]
[1773308816806,3.79926198,86.278,86.238,10.435]
[1773308817007,3.79926198,86.278,86.177,3.71241987]
[1773308817219,3.79926198,86.278,86.191,3.71241987]
[1773308817409,14.23126198,86.267,86.217,10.438]
[1773308817813,3.79926198,86.266,86.217,10.438]
[1773308818015,3.79926198,86.266,86.225,10.437]
[1773308820107,3.79926198,86.266,86.207,3.71367617]
[1773308820108,3.79926198,86.266,86.21,2.50840067]
[1773308820417,3.79926198,86.294,86.231,3.69446646]
[1773308820607,3.79926198,86.294,86.24,2.50840067]
[1773308820810,2.50840067,86.29,86.231,3.69446646]
[1773308821006,3.79926198,86.285,86.231,3.69446646]
[1773308821518,3.79926198,86.282,86.213,3.60895234]
[1773308821817,3.79926198,86.282,86.23,2.50840067]
[1773308822016,3.79926198,86.282,86.22,2.50840067]
[1773308822221,3.79926198,86.271,86.221,10.437]
[1773308822420,3.79926198,86.259,86.179,3.60895234]
[1773308822719,3.79926198,86.259,86.103,23.13]
[1773308822720,3.79926198,86.246,86.191,3.60895234]
[1773308822922,3.79926198,86.229,86.172,3.60895234]
[1773308823316,3.79926198,86.219,86.16,2.50840067]
[1773308823519,3.79926198,86.237,86.171,3.54897703]
[1773308823717,3.79926198,86.237,86.18,2.50840067]
[1773308823919,10.437,86.228,86.18,2.50840067]
[1773308824120,3.79926198,86.227,86.135,3.54897703]
[1773308824317,3.79926198,86.219,86.163,10.444]
[1773308824520,3.79926198,86.219,86.16,2.50840067]
[1773308824822,3.79926198,86.209,86.15,6.0573777]
[1773308825216,3.79926198,86.199,86.14,2.50840067]
[1773308825423,3.79926198,86.199,86.143,10.447]
[1773308825812,3.79926198,86.199,86.133,3.54897703]
[1773308826922,3.79926198,86.216,86.139,3.73317249]
[1773308827523,3.79926198,86.203,86.119,3.73883452]
[1773308828120,3.79926198,86.183,86.12,3.73883452]
[1773308829922,10.443,86.174,86.12,3.73883452]
[1773308830318,3.79926198,86.183,86.12,3.73883452]
[1773308830527,3.79926198,86.169,86.085,3.69242588]
[1773308831420,10.446,86.149,86.087,3.67462065]
[1773308834423,3.79926198,86.076,86.001,3.66610804]
[1773308834818,3.79926198,86.076,86.004,3.66610804]
[1773308835322,14.25626198,86.059,85.987,3.66610804]
[1773308835822,3.79926198,86.055,85.991,3.6398263]
[1773308836525,3.79926198,86.055,85.973,3.6398263]
[1773308836825,3.79926198,86.055,85.981,3.6398263]
[1773308837825,6.29050402,86.09,85.981,3.6398263]
[1773308837826,3.79926198,86.089,85.981,3.6398263]
[1773308838025,3.79926198,86.089,86.001,3.67868631]
[1773308838324,3.79926198,86.089,86.0,6.29050402]
[1773308838325,10.455,86.074,86.005,3.67868631]
[1773308838527,3.79926198,86.073,86.005,3.67868631]
[1773308838925,10.457,86.057,86.005,3.67868631]
[1773308839228,3.79926198,86.056,85.951,3.67868631]
[1773308839429,3.79926198,86.056,85.961,3.67868631]
[1773308839631,10.46,86.036,85.971,3.63430937]
[1773308839823,3.79926198,86.035,85.949,3.63430937]
[1773308840225,3.68595479,86.024,85.949,3.63430937]
[1773308840531,162.633,86.079,85.936,43.86]
[1773308840532,3.68595479,86.079,85.961,3.63690736]
[1773308840725,6.29050402,86.08,85.971,3.6366945]
[1773308840726,3.68595479,86.043,85.971,3.6366945]
[1773308841125,3.68595479,86.043,85.96,6.29050402]
[1773308841321,3.68595479,86.026,85.961,3.6366945]
[1773308841927,3.68595479,86.024,85.963,10.469]
[1773308842123,6.29050402,86.06,85.964,3.64030895]
[1773308842323,43.86,86.095,85.964,3.64030895]
[1773308842324,3.68595479,86.059,85.964,3.64030895]
[1773308842722,6.29050402,86.07,85.959,43.88]
[1773308842723,3.68595479,86.055,85.992,10.465]
[1773308843330,3.68595479,86.051,85.969,3.64030895]
[1773308843628,3.68595479,86.051,85.968,43.88]
[1773308843629,3.68595479,86.051,85.981,3.61863731]
[1773308843832,3.68595479,86.07,86.002,3.61863731]
[1773308844632,3.68595479,86.07,86.016,10.462]
[1773308844932,6.29050402,86.06,85.975,14.015033]
[1773308845135,6.29050402,86.06,85.977,14.015033]
[1773308847337,6.29050402,86.06,85.931,34.72]
[1773308847338,43.9,86.076,85.988,13.949949]
[1773308847536,20.914,86.06,85.965,13.95113122]
[1773308847834,6.29050402,86.05,85.965,13.95113122]
[1773308848035,10.46,86.034,85.965,13.95113122]
[1773308848238,43.9,86.079,85.965,13.95113122]
[1773308848432,6.29050402,86.07,85.965,13.95113122]
[1773308848637,10.459,86.045,85.985,13.95113122]
[1773308849240,10.46,86.035,85.985,13.95113122]
[1773308850336,6.29050402,86.04,85.949,13.85449509]
[1773308850535,6.29050402,86.02,85.949,13.85449509]
[1773308850835,6.29050402,86.02,85.921,13.85449509]
[1773308851340,10.464,86.002,85.943,13.85449509]
[1773308852040,10.463,86.012,85.955,13.78646806]
[1773308852241,6.29050402,86.04,85.955,13.78646806]
[1773308852439,10.462,86.015,85.957,13.78646806]
[1773308852635,6.29050402,86.04,85.957,13.78646806]
[1773308852836,6.29050402,86.06,85.96,6.29050402]
[1773308853142,6.29050402,86.06,85.961,13.78646806]
[1773308853345,6.29050402,86.04,85.942,13.78646806]
[1773308854144,6.29050402,86.04,85.943,13.82945334]
[1773308854541,10.463,86.012,85.945,13.82945334]
[1773308854743,6.29050402,86.04,85.945,13.82945334]
[1773308855348,10.463,86.013,85.947,13.82945334]
[1773308855549,6.29050402,86.04,85.947,13.82945334]
[1773308855945,10.464,86.004,85.95,13.80448823]
[1773308856151,6.29050402,86.04,85.95,13.80448823]
[1773308856750,6.29050402,86.04,85.961,13.80448823]
[1773308856951,6.29050402,86.04,85.918,2.02385003]
[1773308856952,6.29050402,86.02,85.925,13.80448823]
[1773308858949,6.29050402,86.02,85.936,13.80577316]
[1773308858950,10.464,85.999,85.936,13.80577316]
[1773308859848,10.464,85.999,85.94,13.81813202]
[1773308860451,6.29050402,86.04,85.94,13.81813202]
[1773308861751,10.463,86.011,85.952,13.81457909]
[1773308862142,10.46,86.034,85.978,10.467]
[1773308862345,10.46,86.034,85.961,13.81457909]
[1773308862346,6.29050402,86.06,85.979,13.81457909]
[1773308862652,43.9,86.076,85.979,13.81457909]
[1773308863151,6.29050402,86.04,85.961,13.81457909]
[1773308863651,6.29050402,86.06,85.963,13.83486781]
[1773308864046,10.462,86.019,85.968,10.468]
[1773308864251,10.462,86.019,85.969,13.83486781]
[1773308864751,10.461,86.029,85.972,13.83486781]
[1773308865455,10.461,86.029,85.977,13.76191624]
[1773308865658,6.29050402,86.03,85.921,13.76191624]
[1773308865851,6.29050402,86.03,85.949,10.47]
[1773308866354,20.921,86.033,85.95,13.76191624]
[1773308866658,10.463,86.009,85.96,13.76191624]
[1773308867046,20.916,86.053,85.962,13.76191624]
[1773308867751,43.9,86.069,85.919,34.72]
[1773308867752,20.91,86.079,85.974,13.77437243]
[1773308868455,6.29050402,86.04,85.941,13.77437243]
[1773308869051,10.465,85.997,85.948,24.24437243]
[1773308869251,10.465,85.997,85.948,13.77437243]
[1773308869652,10.465,85.99,85.948,13.77437243]
[1773308869957,6.29050402,86.04,85.948,13.77437243]
[1773308870156,10.466,85.982,85.948,13.77437243]
[1773308870958,10.465,85.99,85.948,13.77437243]
[1773308871756,6.29050402,86.01,85.865,20.962]
[1773308872056,6.29050402,86.0,85.89,6.29050402]
[1773308872356,43.9,86.014,85.923,10.473]
[1773308872855,10.466,85.987,85.923,10.473]
[1773308873057,43.9,86.014,85.932,10.472]
[1773308873252,43.9,86.014,85.933,10.61302278]
[1773308873560,6.29050402,86.0,85.934,2.278e-05]
[1773308873753,6.29050402,86.0,85.891,6.95362555]
[1773308874155,6.29050402,86.0,85.918,6.95362555]
[1773308874959,10.47,85.953,85.918,6.95362555]
[1773308875167,6.29050402,86.0,85.918,6.95362555]
[1773308875860,20.928,86.003,85.918,6.95362555]
[1773308876357,10.467,85.978,85.921,6.95784984]
[1773308877061,10.466,85.987,85.921,6.95784984]
[1773308877658,43.9,86.014,85.938,7.00708371]
[1773308878859,10.464,85.999,85.938,7.00708371]
[1773308879256,6.29050402,86.03,85.938,7.00708371]
[1773308879455,10.463,86.008,85.957,6.96297998]
[1773308880859,8.95717558,86.04,85.909,20.951]
[1773308880860,10.462,86.019,85.961,6.96297998]
[1773308881253,10.461,86.028,85.978,6.96297998]
[1773308881654,8.96715171,86.064,85.978,6.96297998]
[1773308881862,8.96715171,86.064,85.988,6.96757445]
[1773308882062,43.9,86.077,85.988,6.96757445]
[1773308882255,8.96512834,86.076,85.988,6.96757445]
[1773308882452,10.458,86.05,85.99,6.96757445]
[1773308882652,8.96512834,86.076,85.99,6.96757445]
[1773308883859,10.458,86.051,85.994,17.44737362]
[1773308884063,8.96512834,86.076,85.994,17.44737362]
[1773308884357,10.459,86.044,85.995,6.98237362]
[1773308884562,8.96512834,86.076,85.995,6.98237362]
[1773308884563,6.29050402,86.07,85.995,6.98237362]
[1773308884763,6.29050402,86.07,85.985,10.466]
[1773308884764,6.29050402,86.05,85.977,6.98237362]
[1773308885063,6.29050402,86.05,85.951,6.98237362]
[1773308885762,10.462,86.015,85.967,6.9818761]
[1773308886258,43.9,86.047,85.967,6.9818761]
[1773308886459,10.461,86.024,85.969,6.9818761]
[1773308886856,43.9,86.056,85.969,6.9818761]
[1773308886857,8.97109325,86.055,85.969,6.9818761]
[1773308887162,43.9,86.056,85.969,6.9818761]
[1773308888268,8.97224146,86.055,85.969,6.9818761]
[1773308888564,6.29050402,86.05,85.969,6.9818761]
[1773308889861,10.461,86.025,85.971,10.468]
[1773308890265,10.461,86.025,85.971,17.4660093]
[1773308890466,10.461,86.025,85.972,6.9980093]
[1773308892066,10.462,86.018,85.972,6.9980093]
[1773308892267,10.462,86.018,85.926,43.9]
[1773308892268,6.29050402,86.03,85.952,6.99764163]
[1773308892470,6.29050402,86.03,85.923,6.99764163]
[1773308892662,6.29050402,86.01,85.923,6.99764163]
[1773308892862,20.927,86.008,85.923,6.99764163]
[1773308893167,10.468,85.969,85.923,6.99764163]
[1773308893369,20.927,86.007,85.923,6.99764163]
[1773308893569,6.31529652,86.0,85.923,6.99764163]
[1773308894065,6.31529652,86.0,85.907,10.475]
[1773308894372,6.31529652,85.96,85.879,23.25930168]
[1773308895571,10.471,85.942,85.88,23.28286045]
[1773308896071,10.471,85.942,85.884,23.28286045]
[1773308896370,6.31529652,85.98,85.884,23.28286045]
[1773308896767,6.31529652,85.98,85.887,23.28286045]
[1773308897570,10.472,85.932,85.887,23.28286045]
[1773308897970,43.9,85.937,85.876,0.00012047]
[1773308898173,6.31529652,85.92,85.876,0.00012047]
[1773308899669,10.479,85.882,85.876,0.00012047]
[1773308899969,6.78833783,85.882,85.876,0.00012047]
[1773308900171,6.31529652,85.89,85.806,23.31965947]
[1773308900373,10.479,85.876,85.806,23.31965947]
[1773308900579,6.31529652,85.9,85.811,23.3192129]
[1773308900972,10.479,85.875,85.811,23.3192129]
[1773308901276,6.31529652,85.9,85.814,23.3192129]
[1773308901478,6.31529652,85.92,85.814,23.3192129]
[1773308901768,6.31529652,85.92,85.826,23.33128707]
[1773308902174,10.478,85.888,85.826,23.33128707]
[1773308903067,10.48,85.874,85.826,23.33128707]
[1773308903979,10.478,85.887,85.826,23.33128707]
[1773308904172,6.31529652,85.91,85.826,23.33128707]
[1773308905176,6.31529652,85.91,85.827,23.25482804]
[1773308905975,43.92,85.914,85.838,23.23195318]
[1773308906772,6.31529652,85.93,85.851,23.23195318]
[1773308907376,10.475,85.908,85.853,23.24159673]
[1773308908178,10.474,85.918,85.856,23.24159673]
[1773308908483,43.92,85.943,85.856,23.24159673]
[1773308909177,6.31529652,85.97,85.876,23.24159673]
[1773308910177,10.47,85.949,85.887,23.27365172]
[1773308910579,10.47,85.949,85.87,6.31529652]
[1773308910580,10.469,85.961,85.9,23.27365172]
[1773308910780,43.92,85.975,85.9,23.27365172]
[1773308911276,6.31529652,85.99,85.902,23.27365172]
[1773308911974,10.467,85.974,85.905,23.27767148]
[1773308912383,6.31529652,85.99,85.905,23.27767148]
[1773308912882,6.31529652,85.99,85.89,6.31529652]
[1773308912883,10.467,85.975,85.909,23.27767148]
[1773308913078,6.31529652,85.99,85.909,23.27767148]
[1773308913886,43.92,86.001,85.912,23.28074705]
[1773308914181,6.31529652,86.0,85.912,23.28074705]
[1773308915681,6.31529652,86.0,85.915,23.28437764]
[1773308916883,10.468,85.968,85.916,23.28437764]
[1773308917084,6.31529652,86.0,85.916,23.28437764]
[1773308917683,10.469,85.961,85.916,23.28437764]
[1773308918779,10.468,85.97,85.916,23.28437764]
[1773308921273,10.468,85.97,85.92,23.32398357]
[1773308922282,10.469,85.962,85.92,23.32398357]
[1773308925676,10.468,85.971,85.922,23.34288141]
[1773308926077,6.31529652,86.0,85.922,23.34288141]
[1773308926781,20.925,86.015,85.922,23.34288141]
[1773308927584,6.31529652,86.02,85.945,23.3432683]
[1773308928484,43.9,86.027,85.949,23.3432683]
[1773308928986,43.9,86.027,85.97,23.3432683]
[1773308928987,10.462,86.016,85.97,23.3432683]
[1773308929686,10.463,86.01,85.97,23.3432683]
[1773308929886,43.9,86.027,85.97,23.3432683]
[1773308930881,6.31529652,86.05,85.972,23.33005695]
[1773308930882,43.9,86.044,85.972,23.33005695]
[1773308931994,10.462,86.019,85.975,23.33033582]
[1773308933090,10.462,86.019,85.95,6.31529652]
[1773308933091,10.462,86.019,85.977,33.79733582]
[1773308933392,10.462,86.019,85.978,23.33033582]
[1773308933994,10.461,86.027,85.98,23.33095737]
[1773308934291,43.9,86.059,85.98,23.33095737]
[1773308934695,10.46,86.035,85.983,23.33095737]
[1773308935286,43.9,86.059,85.926,43.9]
[1773308935287,6.31529652,86.05,85.961,23.33095737]
[1773308936198,6.31529652,86.05,85.964,23.32500166]
[1773308936596,43.9,86.059,85.947,23.32500166]
[1773308936899,6.31529652,86.03,85.947,23.32500166]
[1773308937895,6.31529652,86.03,85.95,23.32625047]
[1773308938295,20.922,86.029,85.95,23.32625047]
[1773308940797,10.465,85.995,85.95,23.32625047]
[1773308942198,10.465,85.995,85.952,23.3222907]
[1773308942398,10.464,86.003,85.952,23.3222907]
[1773308943301,10.464,86.003,85.96,10.469]
[1773308943501,10.464,86.003,85.961,23.32252935]
[1773308944601,6.31529652,86.04,85.968,23.32252935]
[1773308945305,6.31529652,86.04,85.97,23.32252935]
[1773308945498,43.9,86.059,85.97,23.32252935]
[1773308946205,10.46,86.034,85.982,23.3269369]
[1773308947200,10.459,86.042,85.985,23.3269369]
[1773308947701,10.459,86.042,85.909,162.953]
[1773308947702,10.454,86.08,86.029,23.3272416]
[1773308948205,2.0227031,86.12,86.029,23.3272416]
[1773308948395,10.452,86.098,86.042,23.3272416]
[1773308950802,10.453,86.09,86.042,23.3272416]
[1773308951905,10.452,86.1,86.047,23.24243879]
[1773308953207,6.31529652,86.13,86.047,23.24243879]
[1773308953606,10.453,86.091,86.047,23.24243879]
[1773308953802,6.29733984,86.12,86.047,23.24243879]
[1773308954006,6.29733984,86.12,86.011,23.25647573]
[1773308954208,10.454,86.08,86.021,23.25647573]
[1773308955096,6.29733984,86.12,86.021,23.25647573]
[1773308955097,6.29733984,86.1,86.021,23.25647573]
[1773308955608,6.29733984,86.08,85.97,6.29733984]
[1773308957609,6.29733984,86.08,85.971,14.55713549]
[1773308958104,10.458,86.051,85.993,14.55713549]
[1773308958912,10.458,86.051,85.997,14.55713549]
[1773308960310,10.459,86.043,85.997,14.55713549]
[1773308961207,10.459,86.043,85.998,10.464]
[1773308961405,10.459,86.043,85.999,14.56599149]
[1773308961712,20.91,86.076,85.999,14.56599149]
[1773308962315,10.459,86.045,85.999,14.56599149]
[1773308966120,20.91,86.076,85.999,14.56599149]
[1773308966121,10.46,86.038,85.999,14.56599149]
[1773308967115,10.46,86.036,85.999,14.56599149]
[1773308969116,10.459,86.044,85.999,14.56599149]
[1773308969318,6.29733984,86.08,85.999,14.56599149]
[1773308970916,10.458,86.051,86.005,14.54087143]
[1773308971118,6.29733984,86.08,86.005,14.54087143]
[1773308971916,10.459,86.045,86.005,14.54087143]
[1773308972316,10.458,86.052,86.007,14.54059161]
[1773308973321,10.459,86.046,86.009,14.54059161]
[1773308974717,6.29733984,86.08,86.011,14.54050484]
[1773308975815,10.459,86.043,86.011,14.54050484]
[1773308978826,10.46,86.036,85.997,14.54588473]
[1773308979015,2.52160448,86.04,85.997,14.54588473]
[1773308979819,10.46,86.03,85.997,14.54588473]
[1773308980217,2.52160448,86.03,85.981,14.54589083]
[1773308980924,10.462,86.015,85.981,14.54589083]
[1773308981323,2.52160448,86.03,85.981,14.54589083]
[1773308982821,2.52160448,86.04,85.981,14.54589083]
[1773308983029,2.52160448,86.03,85.981,14.54589083]
[1773308983523,10.462,86.018,85.981,14.54589083]
[1773308987126,2.52160448,86.04,85.981,14.54589083]
[1773308987528,10.458,86.047,86.001,14.55802828]
[1773308987725,10.458,86.047,85.965,20.937]
[1773308987726,2.52160448,86.08,86.021,14.55802828]
[1773308988529,2.52160448,86.07,86.021,14.55802828]
[1773308989531,20.91,86.076,86.003,14.54382743]
[1773308989733,10.70251027,86.085,86.003,14.54382743]
[1773308989935,8.94643505,86.084,86.003,14.54382743]
[1773308990133,20.911,86.073,86.003,14.54382743]
[1773308992035,10.459,86.046,86.005,14.56056876]
[1773308992831,10.459,86.04,86.005,14.56056876]
[1773308993935,10.46,86.034,86.005,14.56056876]
[1773308997636,8.94643505,86.07,86.005,14.56056876]
[1773308997932,20.911,86.071,86.005,14.56056876]
[1773308998128,10.459,86.046,86.005,14.56056876]
[1773308999836,10.459,86.046,86.006,14.55839031]
[1773309000240,10.459,86.04,86.006,14.55839031]
[1773309001138,8.94643505,86.065,86.006,14.55839031]
[1773309001443,8.94643505,86.079,86.006,14.55839031]
[1773309001635,8.94643505,86.078,86.016,14.57669905]
[1773309001839,8.94643505,86.088,86.016,14.57669905]
[1773309002037,10.70251027,86.101,85.995,43.9]
[1773309002038,10.455,86.074,86.028,14.57669905]
[1773309002634,8.94643505,86.097,86.028,14.57669905]
[1773309002834,8.94643505,86.096,86.028,14.57669905]
[1773309003034,8.94643505,86.095,86.028,14.57669905]
[1773309003235,8.94643505,86.094,86.031,14.57669905]
[1773309003430,8.94643505,86.093,86.031,14.57669905]
[1773309003634,8.94643505,86.092,86.031,14.57669905]
[1773309003835,8.94643505,86.091,86.031,14.57669905]
[1773309004036,8.94643505,86.103,86.031,14.57669905]
[1773309004236,10.455,86.076,86.031,14.57669905]
[1773309005344,10.455,86.076,86.034,14.59384699]
[1773309005747,10.456,86.07,86.034,14.59384699]
[1773309006839,10.455,86.077,86.034,14.59384699]
[1773309007241,8.94643505,86.097,86.034,14.59384699]
[1773309007546,9.00038551,86.098,86.034,14.59384699]
[1773309007845,10.456,86.064,86.034,14.59384699]
[1773309008244,6.30342108,86.09,86.001,14.57761463]
[1773309008442,9.00038551,86.089,86.001,14.57761463]
[1773309008642,9.00038551,86.088,86.001,14.57761463]
[1773309008841,9.00038551,86.087,86.001,14.57761463]
[1773309009043,10.458,86.047,86.001,14.57761463]
[1773309012146,10.458,86.047,86.003,14.56560397]
[1773309014046,10.457,86.055,86.011,14.57135784]
[1773309014638,10.457,86.062,86.014,10.462]
[1773309014838,10.457,86.062,86.015,14.57135784]
[1773309015050,10.457,86.062,86.021,14.57135784]
[1773309015251,2.5216766,86.08,86.02,2.5216766]
[1773309015252,10.456,86.071,86.023,14.57135784]
[1773309015750,2.5198979,86.08,86.025,10.461]
[1773309016051,9.00038551,86.087,86.026,14.56809409]
[1773309016350,10.456,86.065,86.026,14.56809409]
[1773309016550,9.00038551,86.087,86.031,14.56809409]
[1773309017949,10.456,86.067,86.031,14.56809409]
[1773309019751,10.455,86.074,86.031,14.56809409]
[1773309019952,9.00038551,86.087,86.031,14.56809409]
[1773309020154,2.5198979,86.08,86.031,14.56809409]
[1773309020347,9.00038551,86.087,86.031,14.56809409]
[1773309020348,10.456,86.071,86.031,14.56809409]
[1773309022253,10.454,86.08,86.032,14.60265436]
[1773309022754,9.00038551,86.087,86.032,14.60265436]
[1773309023255,2.5198979,86.09,86.032,14.60265436]
[1773309023849,9.00038551,86.094,86.032,14.60265436]
[1773309023850,2.5198979,86.08,86.032,14.60265436]
[1773309024349,2.5198979,86.09,86.032,14.60265436]
[1773309025757,10.456,86.063,86.032,14.60265436]
[1773309029954,2.5198979,86.07,86.011,14.60208297]
[1773309030156,2.5198979,86.08,86.021,14.60208297]
[1773309031756,10.455,86.073,86.028,14.60544055]
[1773309032658,10.456,86.067,86.028,14.60544055]
[1773309037865,10.457,86.061,86.028,14.60544055]
[1773309040468,9.00727968,86.082,86.031,14.60678216]
[1773309040664,9.00727968,86.089,86.031,14.60678216]
[1773309040865,9.00727968,86.088,86.041,14.60678216]
[1773309041164,9.00727968,86.087,86.041,14.60678216]
[1773309041365,9.00727968,86.086,86.041,14.60678216]
[1773309041560,9.00727968,86.085,86.041,14.60678216]
[1773309041765,9.00727968,86.089,86.041,14.60678216]
[1773309041959,9.00727968,86.088,86.041,14.60678216]
[1773309042163,9.00727968,86.087,86.041,14.60678216]
[1773309042365,9.00727968,86.086,86.041,14.60678216]
[1773309042566,9.00727968,86.085,86.041,14.60678216]
[1773309042767,9.00727968,86.084,86.041,14.60678216]
[1773309042968,10.456,86.07,86.041,14.60678216]
[1773309044167,10.455,86.079,86.041,14.60678216]
[1773309048374,10.454,86.086,86.043,14.64383821]
[1773309048879,9.00727968,86.099,86.043,14.64383821]
[1773309049077,10.454,86.081,86.043,14.64383821]
[1773309050080,10.454,86.081,86.044,14.64006651]
[1773309050286,10.453,86.09,86.051,14.64006651]
[1773309050783,9.00727968,86.101,86.052,14.64008265]
[1773309050983,9.00727968,86.1,86.052,14.64008265]
[1773309051177,9.00727968,86.109,86.061,14.64008265]
[1773309051374,9.00727968,86.119,86.061,14.64008265]
[1773309051576,9.00727968,86.118,86.061,14.64008265]
[1773309051786,9.00727968,86.117,86.061,14.64008265]
[1773309052079,2.5198979,86.12,86.061,14.64008265]
[1773309052486,10.45,86.113,86.07,14.63928903]
[1773309052986,10.45,86.113,86.072,14.63928903]
[1773309053181,2.5198979,86.09,86.041,14.63928903]
[1773309054482,10.454,86.084,86.041,14.63928903]
[1773309055887,10.454,86.084,86.043,10.459]
[1773309056082,43.9,86.104,86.044,14.66519868]
[1773309056286,43.9,86.104,86.051,14.66519868]
[1773309056888,10.452,86.099,86.054,10.458]
[1773309057183,10.452,86.099,86.055,14.66519868]
[1773309057983,10.453,86.092,86.055,14.66519868]
[1773309058583,10.452,86.099,86.055,14.66519868]